Workbook

Sheet Sheet1
A1: Saas Magic Number vs. IRR
B2: David Brode | E2: www.brodegroup.com
B3: (303) 444-3300 | E3: dbrode@brodegroup.com
A5: http://larsleckie.blogspot.com/2008/03/magic-number-for-saas-companies.html
A7: Analysis
F8: NPV and Magic Number give different signals
H10: Price = | I10: =SaasPrice -> 9
J11: Discount Rate
H12: =G56 -> FN | I12: 0.15 | J12: =I12+0.05 -> 0.2 | K12: 0.25 | L12: 0.3 | M12: 0.35 | N12: 0.4 | O12: 0.45
G13: Churn | H13: 0.25 | I13: FN | J13: FN | K13: FN | L13: 0 | M13: 0 | N13: 0 | O13: 0
H14: =H13+0.05 -> 0.3 | I14: FN | J14: FN | K14: 0 | L14: 0 | M14: 0 | N14: 0 | O14: 0
H15: =H14+0.05 -> 0.35 | I15: FN | J15: 0 | K15: 0 | L15: 0 | M15: 0 | N15: 0 | O15: 0
H16: 0.4 | I16: 0 | J16: 0 | K16: 0 | L16: 0 | M16: 0 | N16: 0 | O16: 0
H17: 0.45 | I17: 0 | J17: 0 | K17: 0 | L17: 0 | M17: 0 | N17: 0 | O17: 0
H18: 0.5 | I18: 0 | J18: 0 | K18: 0 | L18: 0 | M18: 0 | N18: 0 | O18: 0
I21: Key
I22: - | J22: NPV and Magic Number Match
I23: FP | J23: False Positive
I24: FN | J24: False Negative
F26: Month | I26: 0 | J26: 1 | K26: 2 | L26: 3 | M26: 4 | N26: 5 | O26: 6 | P26: 7 | Q26: 8 | R26: 9 | S26: 10 | T26: 11 | U26: 12 | V26: 13 | W26: 14 | X26: 15 | Y26: 16 | Z26: 17 | AA26: 18 | AB26: 19 | AC26: 20 | AD26: 21 | AE26: 22 | AF26: 23 | AG26: 24 | AH26: 25 | AI26: 26 | AJ26: 27 | AK26: 28 | AL26: 29 | AM26: 30 | AN26: 31 | AO26: 32 | AP26: 33 | AQ26: 34 | AR26: 35
A27: Basic Model
B28: Customers
C29: Customers | I29: 1 | J29: =IF(MOD(J$26,12)=0,I29*(1-$G$30),I29) -> 1 | K29: 1 | L29: 1 | M29: 1 | N29: 1 | O29: 1 | P29: 1 | Q29: 1 | R29: 1 | S29: 1 | T29: 1 | U29: 0.8 | V29: 0.8 | W29: 0.8 | X29: 0.8 | Y29: 0.8 | Z29: 0.8 | AA29: 0.8 | AB29: 0.8 | AC29: 0.8 | AD29: 0.8 | AE29: 0.8 | AF29: 0.8 | AG29: 0.64 | AH29: 0.64 | AI29: 0.64 | AJ29: 0.64 | AK29: =IF(MOD(AK$26,12)=0,AJ29*(1-$G$30),AJ29) -> 0.64 | AL29: 0.64 | AM29: 0.64 | AN29: 0.64 | AO29: 0.64 | AP29: 0.64 | AQ29: 0.64 | AR29: 0.64
C30: Churn | F30: %/year | G30: 0.2
B32: Operating Metrics
C33: Price | F33: $/mo | G33: 9
C34: COS | F34: % rev | G34: 0.2
C35: Customer Acquisition Cost (CAC) | F35: $/cust | G35: 150
C37: Discount Rate | F37: %/year | G37: 0.2
B39: Calculations
C40: Revenue | F40: $ | I40: =I29*$G$33 -> 9 | J40: 9 | K40: 9 | L40: 9 | M40: 9 | N40: 9 | O40: 9 | P40: 9 | Q40: 9 | R40: 9 | S40: 9 | T40: 9 | U40: 7.2 | V40: 7.2 | W40: 7.2 | X40: 7.2 | Y40: 7.2 | Z40: 7.2 | AA40: 7.2 | AB40: 7.2 | AC40: 7.2 | AD40: 7.2 | AE40: 7.2 | AF40: 7.2 | AG40: 5.76 | AH40: 5.76 | AI40: 5.76 | AJ40: 5.76 | AK40: 5.76 | AL40: 5.76 | AM40: 5.76 | AN40: 5.76 | AO40: 5.76 | AP40: 5.76 | AQ40: 5.76 | AR40: 5.76
C41: COS | F41: $ | I41: =I40*$G$34 -> 1.8 | J41: =J40*$G$34 -> 1.8 | K41: 1.8 | L41: 1.8 | M41: 1.8 | N41: 1.8 | O41: 1.8 | P41: 1.8 | Q41: 1.8 | R41: 1.8 | S41: 1.8 | T41: 1.8 | U41: 1.44 | V41: 1.44 | W41: 1.44 | X41: 1.44 | Y41: 1.44 | Z41: 1.44 | AA41: 1.44 | AB41: 1.44 | AC41: 1.44 | AD41: 1.44 | AE41: 1.44 | AF41: 1.44 | AG41: 1.152 | AH41: 1.152 | AI41: 1.152 | AJ41: 1.152 | AK41: 1.152 | AL41: 1.152 | AM41: 1.152 | AN41: 1.152 | AO41: 1.152 | AP41: 1.152 | AQ41: 1.152 | AR41: 1.152
C42: CAC | F42: $ | I42: =G35 -> 150 | J42: 0 | K42: 0 | L42: 0 | M42: 0 | N42: 0 | O42: 0 | P42: 0 | Q42: 0 | R42: 0 | S42: 0 | T42: 0 | U42: 0 | V42: 0 | W42: 0 | X42: 0 | Y42: 0 | Z42: 0 | AA42: 0 | AB42: 0 | AC42: 0 | AD42: 0 | AE42: 0 | AF42: 0 | AG42: 0 | AH42: 0 | AI42: 0 | AJ42: 0 | AK42: 0 | AL42: 0 | AM42: 0 | AN42: 0 | AO42: 0 | AP42: 0 | AQ42: 0 | AR42: 0
C43: EBITDA (CF) | F43: $ | I43: =I40-I41-I42 -> -142.8 | J43: =J40-J41-J42 -> 7.2 | K43: 7.2 | L43: 7.2 | M43: 7.2 | N43: 7.2 | O43: 7.2 | P43: 7.2 | Q43: 7.2 | R43: 7.2 | S43: 7.2 | T43: 7.2 | U43: 5.76 | V43: 5.76 | W43: 5.76 | X43: 5.76 | Y43: 5.76 | Z43: 5.76 | AA43: 5.76 | AB43: 5.76 | AC43: 5.76 | AD43: 5.76 | AE43: 5.76 | AF43: 5.76 | AG43: 4.608 | AH43: 4.608 | AI43: 4.608 | AJ43: 4.608 | AK43: 4.608 | AL43: 4.608 | AM43: 4.608 | AN43: 4.608 | AO43: 4.608 | AP43: 4.608 | AQ43: 4.608 | AR43: 4.608
C45: Value
D46: NPV | F46: $ | G46: =NPV((1+$G$37)^(1/12)-1,I43:AR43) -> 17.73670895
D47: IRR | F47: % | G47: =(1+IRR(I43:AR43))^(12)-1 -> 0.3247912017
D48: Payback Period | F48: months | G48: =G35/SaasPrice -> 16.66666667
D50: Revenue Stream Value (NPV) | F50: $ | G50: =NPV((1+$G$37)^(1/12)-1,I40:AR40) -> 206.8436441
C52: "Magic Number" calculations
D53: Annual MRR | F53: $ | G53: =G33*12 -> 108
D54: Magic Number | F54: (none) | G54: =G53/I42 -> 0.72 | H54: Magic Number = Annualized Delta Revenue(n) / Sales & Mktg Exp(n-1)
H55: Lars thinks Magic Number > 0.75 is good and < 0.75 is bad.
C56: Different Signal | G56: =IF(SaaSNPV>0, IF(G54>0.75,0,"FN"), IF(G54<0.75,0,"FP")) -> FN
V64: =U64+0.05 -> 0.05 | W64: 0.1 | X64: 0.15 | Y64: 0.2 | Z64: 0.25 | AA64: 0.3 | AB64: 0.35 | AC64: 0.4 | AD64: 0.45 | AE64: 0.5 | AF64: 0.55
